fUSD/lending_fUSD_20240327
["ID","MTS","AMOUNT","RATE_DAILY","PERIOD"]
[320762922,1711548654172,-500.0,0.00054246,120]
[320762923,1711548654181,-151.0,0.00054246,120]
[320762924,1711548654190,-578.09,0.00054246,120]
[320762925,1711548654201,-1921.89,0.00054246,120]
[320762926,1711548654211,-764.46,0.00054246,120]
[320762927,1711548654223,-674.22,0.00054246,120]
[320762928,1711548654233,-500.0,0.00054246,120]
[320762929,1711548654245,-565.22,0.00054246,120]
[320762930,1711548654255,-151.0,0.00054246,14]
[320762931,1711548654265,-151.0,0.00054246,120]
[320762932,1711548654275,-500.0,0.00054246,120]
[320762933,1711548654284,-500.0,0.00054246,120]
[320762934,1711548654293,-163.255056,0.00054246,120]
[320762935,1711548654302,-500.0,0.00054246,120]
[320762936,1711548654311,-500.0,0.00054246,120]
[320762937,1711548654322,-1370.54727362,0.00054246,120]
[320762938,1711548654347,-2993.79272638,0.00054246,120]
[320762939,1711548654356,-500.0,0.00054246,120]
[320762940,1711548654365,-24053.41368071,0.00054246,120]
[320762941,1711548654651,-1367.91975491,0.00054246,120]
[320762942,1711548654671,-3961.54768359,0.00054246,120]
[320762943,1711548654682,-3953.72669227,0.00054246,120]
[320762944,1711548654693,-1963.85589906,0.00054246,120]
[320762945,1711548654705,-5700.84628946,0.00054246,120]
[320762946,1711548654715,-504.01,0.00054246,120]
[320762947,1711548654724,-500.0,0.00054246,120]
[320762948,1711548654734,-601.18,0.00054246,120]
[320762949,1711548654743,-163.255056,0.00054246,120]
[320762950,1711548654752,-502.78861518,0.00054246,120]
[320762951,1711548654762,-781.22,0.00054246,120]
[320762952,1711548654771,-500.0,0.00054246,120]
[320762953,1711548654781,-500.0,0.00054246,120]
[320762954,1711548654791,-500.0,0.00054246,120]
[320762955,1711548654801,-500.0,0.00054246,120]
[320762956,1711548654810,-500.0,0.00054246,120]
[320762957,1711548654820,-151.0,0.00054246,120]
[320762958,1711548654830,-152.10275518,0.00054271,60]
[320762959,1711548654840,-307.63048246,0.0005435,2]
[320762960,1711548654851,-162.38779299,0.00054432,60]
[320762961,1711548654860,-331.4,0.00054466,120]
[320762962,1711548654869,-8061.74854047,0.0005448,30]
[320762963,1711548654882,-6938.25145953,0.0005448,30]
[320762964,1711548654898,-151.0,0.00054481,120]
[320762965,1711548654907,-151.0,0.00054481,120]
[320762966,1711548654917,-151.0,0.00054481,120]
[320762967,1711548654927,-205.651128,0.00054481,120]
[320762968,1711548654937,-151.0,0.00054481,120]
[320762969,1711548654946,-1509.27358811,0.000545,2]
[320762970,1711548654956,-2000.0,0.0005452,120]
[320762971,1711548654966,-500.0,0.0005452,120]
[320762972,1711548654976,-500.0,0.0005452,120]
[320762973,1711548654986,-500.0,0.0005452,120]
[320762974,1711548654995,-500.0,0.0005452,120]
[320762975,1711548655004,-500.0,0.0005452,120]
[320762976,1711548655014,-500.0,0.0005452,120]
[320762977,1711548655023,-500.0,0.0005452,120]
[320762978,1711548655033,-500.0,0.0005452,120]
[320762979,1711548655045,-500.0,0.0005452,120]
[320762980,1711548655056,-500.0,0.0005452,120]
[320762981,1711548655066,-500.0,0.0005452,120]
[320762982,1711548655076,-500.0,0.0005452,120]
[320762983,1711548655089,-500.0,0.0005452,120]
[320762984,1711548655099,-500.0,0.0005452,120]
[320762985,1711548655109,-500.0,0.0005452,120]
[320762986,1711548655119,-500.0,0.0005452,120]
[320762987,1711548655130,-500.0,0.0005452,120]
[320762988,1711548655142,-500.0,0.0005452,120]
[320762989,1711548655152,-229.96,0.0005452,120]
[320762990,1711548655162,-500.0,0.0005452,120]
[320762991,1711548655172,-500.0,0.0005452,120]
[320762992,1711548655182,-500.0,0.0005452,120]
[320762993,1711548655192,-500.0,0.0005452,120]
[320762994,1711548655201,-500.0,0.0005452,120]
[320762995,1711548655211,-500.0,0.0005452,120]
[320762996,1711548655221,-500.0,0.0005452,120]
[320762997,1711548655231,-508.56,0.0005452,120]
[320762998,1711548655241,-500.0,0.0005452,120]
[320762999,1711548655252,-500.0,0.0005452,120]
[320763000,1711548655263,-500.0,0.0005452,85]
[320763001,1711548655273,-500.0,0.0005452,120]
[320763002,1711548655284,-1068.87,0.0005452,120]
[320763003,1711548655294,-500.0,0.0005452,120]
[320763004,1711548655304,-813.5,0.0005452,120]
[320763005,1711548655313,-500.0,0.0005452,120]
[320763006,1711548655322,-500.0,0.0005452,120]
[320763007,1711548655332,-500.0,0.0005452,120]
[320763008,1711548655342,-1350.95,0.0005452,120]
[320763009,1711548655352,-500.0,0.0005452,120]
[320763010,1711548655362,-500.0,0.0005452,120]
[320763011,1711548655372,-318.98,0.0005452,120]
[320763012,1711548655385,-500.0,0.0005452,120]
[320763013,1711548655400,-755.43,0.0005452,120]
[320763014,1711548655409,-500.0,0.0005452,120]
[320763015,1711548655420,-500.0,0.0005452,120]
[320763016,1711548655430,-1194.68,0.0005452,120]
[320763017,1711548655439,-500.0,0.0005452,120]
[320763018,1711548655449,-790.26,0.0005452,120]
[320763019,1711548655458,-500.0,0.0005452,120]
[320763020,1711548655468,-1262.57,0.0005452,120]
[320763021,1711548655478,-1294.42,0.0005452,120]
[320763022,1711548655488,-500.0,0.0005452,120]
[320763023,1711548655498,-698.91,0.0005452,120]
[320763024,1711548655508,-902.57,0.0005452,120]
[320763025,1711548655517,-500.0,0.0005452,120]
[320763026,1711548655526,-500.0,0.0005452,120]
[320763027,1711548655537,-500.0,0.0005452,120]
[320763028,1711548655547,-566.19,0.0005452,120]
[320763029,1711548655557,-1313.13,0.0005452,120]
[320763030,1711548655567,-500.0,0.0005452,120]
[320763031,1711548655578,-645.14,0.0005452,120]
[320763032,1711548655589,-705.99,0.0005452,120]
[320763033,1711548655598,-500.0,0.0005452,120]
[320763034,1711548655609,-500.0,0.0005452,120]
[320763035,1711548655620,-3428.7,0.0005452,120]
[320763036,1711548655630,-500.0,0.0005452,120]
[320763037,1711548655643,-571.02,0.0005452,120]
[320763038,1711548655653,-500.0,0.0005452,120]
[320763039,1711548655662,-500.0,0.0005452,120]
[320763040,1711548655672,-500.0,0.0005452,120]
[320763041,1711548655682,-500.0,0.0005452,120]
[320763042,1711548655691,-500.0,0.0005452,120]
[320763043,1711548655700,-500.0,0.0005452,120]
[320763044,1711548655712,-500.0,0.0005452,120]
[320763045,1711548655722,-1529.41,0.0005452,120]
[320763046,1711548655732,-2009.11,0.0005452,120]
[320763047,1711548655741,-500.0,0.0005452,120]
[320763048,1711548655750,-500.0,0.0005452,120]
[320763049,1711548655761,-500.0,0.0005452,120]
[320763050,1711548655770,-500.0,0.0005452,120]
[320763051,1711548655780,-1427.39,0.0005452,120]
[320763052,1711548655789,-500.0,0.0005452,120]
[320763053,1711548655800,-500.0,0.0005452,120]
[320763054,1711548655810,-728.9,0.0005452,120]
[320763055,1711548655820,-500.0,0.0005452,120]
[320763056,1711548655830,-500.0,0.0005452,120]
[320763057,1711548655840,-500.0,0.0005452,120]
[320763058,1711548655850,-500.0,0.0005452,120]
[320763059,1711548655860,-500.0,0.0005452,120]
[320763060,1711548655869,-500.0,0.0005452,120]
[320763061,1711548655879,-895.13,0.0005452,120]
[320763062,1711548655893,-500.0,0.0005452,120]
[320763063,1711548655902,-500.0,0.0005452,120]
[320763064,1711548655912,-435.68,0.0005452,120]
[320763065,1711548655921,-500.0,0.0005452,120]
[320763066,1711548655932,-500.0,0.0005452,120]
[320763067,1711548655942,-500.0,0.0005452,120]
[320763068,1711548655952,-500.0,0.0005452,120]
[320763069,1711548655962,-500.0,0.0005452,120]
[320763070,1711548655973,-500.0,0.0005452,120]
[320763071,1711548655984,-818.85,0.0005452,120]
[320763072,1711548655993,-500.0,0.0005452,120]
[320763073,1711548656007,-871.38,0.0005452,120]
[320763074,1711548656018,-1622.87,0.0005452,120]
[320763075,1711548656028,-500.0,0.0005452,120]
[320763076,1711548656041,-500.0,0.0005452,120]
[320763077,1711548656051,-500.0,0.0005452,120]
[320763078,1711548656061,-500.0,0.0005452,120]
[320763079,1711548656071,-500.0,0.0005452,120]
[320763080,1711548656086,-500.0,0.0005452,120]
[320763081,1711548656096,-500.0,0.0005452,120]
[320763082,1711548656106,-500.0,0.0005452,120]
[320763083,1711548656118,-500.0,0.0005452,120]
[320763084,1711548656130,-610.8,0.0005452,120]
[320763085,1711548656143,-562.17,0.0005452,120]
[320763086,1711548656156,-500.0,0.0005452,120]
[320763087,1711548656168,-596.07,0.0005452,120]
[320763088,1711548656180,-500.0,0.0005452,120]
[320763089,1711548656191,-500.0,0.0005452,120]
[320763090,1711548656202,-500.0,0.0005452,120]
[320763091,1711548656213,-500.0,0.0005452,120]
[320763092,1711548656224,-500.0,0.0005452,120]
[320763093,1711548656235,-500.0,0.0005452,120]
[320763094,1711548656246,-1399.33,0.0005452,120]
[320763095,1711548656256,-500.0,0.0005452,120]
[320763096,1711548656266,-500.0,0.0005452,120]
[320763097,1711548656276,-500.0,0.0005452,120]
[320763098,1711548656287,-500.0,0.0005452,120]
[320763099,1711548656298,-392.18,0.0005452,120]
[320763100,1711548656309,-500.0,0.0005452,120]
[320763101,1711548656319,-500.0,0.0005452,120]
[320763102,1711548656330,-731.85,0.0005452,120]
[320763103,1711548656340,-204.38,0.0005452,120]
[320763104,1711548656351,-1851.27,0.0005452,120]
[320763105,1711548656361,-500.0,0.0005452,120]
[320763106,1711548656372,-500.0,0.0005452,120]
[320763107,1711548656381,-500.0,0.0005452,120]
[320763108,1711548656394,-542.70310809,0.0005452,120]
[320763109,1711548656404,-515.45,0.0005452,120]
[320763110,1711548656414,-254.12543627,0.0005452,120]
[320763111,1711548656434,-245.87456373,0.0005452,120]
[320763112,1711548656444,-500.0,0.0005452,120]
[320763113,1711548656455,-722.22,0.0005452,120]
[320763114,1711548656464,-500.0,0.0005452,120]
[320763115,1711548656474,-500.0,0.0005452,120]
[320763116,1711548656483,-669.98,0.0005452,120]
[320763117,1711548656494,-500.0,0.0005452,120]
[320763118,1711548656504,-511.69,0.0005452,60]
[320763119,1711548656514,-711.78,0.0005452,120]
[320763120,1711548656523,-500.0,0.0005452,120]
[320763121,1711548656533,-500.0,0.0005452,120]
[320763122,1711548656544,-500.0,0.0005452,120]
[320763123,1711548656555,-500.0,0.0005452,120]
[320763124,1711548656565,-500.0,0.0005452,120]
[320763125,1711548656575,-500.0,0.0005452,120]
[320763126,1711548656585,-500.0,0.0005452,120]
[320763127,1711548656595,-501.58,0.0005452,120]
[320763128,1711548656604,-500.66,0.0005452,120]
[320763129,1711548656614,-500.0,0.0005452,120]
[320763130,1711548656623,-500.0,0.0005452,120]
[320763131,1711548656633,-557.13,0.0005452,120]
[320763132,1711548656647,-500.0,0.0005452,120]
[320763133,1711548656657,-500.0,0.0005452,120]
[320763134,1711548656666,-500.0,0.0005452,120]
[320763135,1711548656676,-288.34,0.0005452,120]
[320763136,1711548656686,-526.51,0.0005452,120]
[320763137,1711548656695,-500.0,0.0005452,120]
[320763138,1711548656705,-545.46,0.0005452,120]
[320763139,1711548656714,-1711.29,0.0005452,120]
[320763140,1711548656909,-500.0,0.0005452,120]
[320763141,1711548656919,-500.0,0.0005452,120]
[320763142,1711548656929,-500.0,0.0005452,120]
[320763143,1711548656938,-661.99,0.0005452,120]
[320763144,1711548656947,-759.71,0.0005452,120]
[320763145,1711548656957,-500.0,0.0005452,120]
[320763146,1711548656966,-500.0,0.0005452,120]
[320763147,1711548656975,-500.0,0.0005452,120]
[320763148,1711548656984,-706.83,0.0005452,120]
[320763149,1711548656993,-373.76,0.0005452,120]
[320763150,1711548657003,-500.0,0.0005452,120]
[320763151,1711548657012,-500.0,0.0005452,120]
[320763152,1711548657021,-500.0,0.0005452,120]
[320763153,1711548657032,-500.0,0.0005452,120]
[320763154,1711548657043,-706.38,0.0005452,120]
[320763155,1711548657053,-500.0,0.0005452,120]
[320763156,1711548657063,-500.0,0.0005452,120]
[320763157,1711548657074,-500.0,0.0005452,120]
[320763158,1711548657084,-608.01,0.0005452,120]
[320763159,1711548657096,-500.0,0.0005452,120]
[320763160,1711548657105,-500.0,0.0005452,120]
[320763161,1711548657114,-1402.7,0.0005452,120]
[320763162,1711548657124,-647.76,0.0005452,120]
[320763163,1711548657133,-500.0,0.0005452,120]
[320763164,1711548657151,-500.0,0.0005452,120]
[320763165,1711548657161,-500.0,0.0005452,120]
[320763166,1711548657170,-500.0,0.0005452,120]
[320763167,1711548657180,-500.0,0.0005452,120]
[320763168,1711548657191,-500.0,0.0005452,120]
[320763169,1711548657201,-544.06,0.0005452,120]
[320763170,1711548657212,-500.0,0.0005452,120]
[320763171,1711548657222,-500.0,0.0005452,120]
[320763172,1711548657233,-1532.84,0.0005452,120]
[320763173,1711548657245,-500.0,0.0005452,120]
[320763174,1711548657254,-500.0,0.0005452,120]
[320763175,1711548657264,-674.43,0.0005452,120]
[320763176,1711548657274,-500.0,0.0005452,120]
[320763177,1711548657284,-500.0,0.0005452,120]
[320763178,1711548657294,-500.0,0.0005452,120]
[320763179,1711548657303,-500.0,0.0005452,120]
[320763180,1711548657312,-500.0,0.0005452,120]
[320763181,1711548657322,-500.0,0.0005452,120]
[320763182,1711548657332,-500.0,0.0005452,120]
[320763183,1711548657341,-456.08,0.0005452,120]
[320763184,1711548657351,-633.57,0.0005452,120]
[320763185,1711548657360,-500.0,0.0005452,120]
[320763186,1711548657369,-500.0,0.0005452,120]
[320763187,1711548657378,-268.9,0.0005452,120]
[320763188,1711548657388,-500.0,0.0005452,120]
[320763189,1711548657403,-500.0,0.0005452,120]
[320763190,1711548657413,-500.0,0.0005452,120]
[320763191,1711548657423,-500.0,0.0005452,120]
[320763192,1711548657432,-709.56,0.0005452,120]
[320763193,1711548657441,-867.45,0.0005452,120]
[320763194,1711548657451,-500.0,0.0005452,120]
[320763195,1711548657461,-500.0,0.0005452,120]
[320763196,1711548657470,-1526.7,0.0005452,120]
[320763197,1711548657479,-500.0,0.0005452,120]
[320763198,1711548657488,-500.0,0.0005452,120]
[320763199,1711548657498,-500.0,0.0005452,120]
[320763200,1711548657508,-500.0,0.0005452,120]
[320763201,1711548657517,-1389.07,0.0005452,120]
[320763202,1711548657526,-500.0,0.0005452,120]
[320763203,1711548657536,-500.0,0.0005452,120]
[320763204,1711548657545,-500.0,0.0005452,120]
[320763205,1711548657555,-500.0,0.0005452,120]
[320763206,1711548657564,-500.0,0.0005452,120]
[320763207,1711548657574,-500.0,0.0005452,120]
[320763208,1711548657583,-500.0,0.0005452,120]
[320763209,1711548657593,-500.0,0.0005452,120]
[320763210,1711548657602,-547.86,0.0005452,30]
[320763211,1711548657612,-585.94,0.0005452,120]
[320763212,1711548657621,-500.0,0.0005452,120]
[320763213,1711548657631,-500.0,0.0005452,120]
[320763214,1711548657645,-500.0,0.0005452,120]
[320763215,1711548657658,-500.0,0.0005452,120]
[320763216,1711548657668,-500.0,0.0005452,120]
[320763217,1711548657678,-500.0,0.0005452,120]
[320763218,1711548657688,-664.05,0.0005452,120]
[320763219,1711548657697,-500.0,0.0005452,120]
[320763220,1711548657707,-500.0,0.0005452,120]
[320763221,1711548657716,-500.0,0.0005452,120]
[320763222,1711548657725,-500.0,0.0005452,120]
[320763223,1711548657735,-500.0,0.0005452,120]
[320763224,1711548657744,-656.68,0.0005452,120]
[320763225,1711548657754,-526.37,0.0005452,120]
[320763226,1711548657765,-500.0,0.0005452,120]
[320763227,1711548657776,-500.0,0.0005452,120]
[320763228,1711548657785,-500.0,0.0005452,120]
[320763229,1711548657795,-500.0,0.0005452,120]
[320763230,1711548657805,-611.21,0.0005452,120]
[320763231,1711548657815,-500.0,0.0005452,120]
[320763232,1711548657824,-500.0,0.0005452,120]
[320763233,1711548657835,-500.0,0.0005452,120]
[320763234,1711548657844,-285.86,0.0005452,120]
[320763235,1711548657854,-578.74,0.0005452,120]
[320763236,1711548657863,-500.0,0.0005452,120]
[320763237,1711548657872,-612.98,0.0005452,120]
[320763238,1711548657881,-500.0,0.0005452,120]
[320763239,1711548657894,-500.0,0.0005452,120]
[320763240,1711548657904,-500.0,0.0005452,120]
[320763241,1711548657913,-500.0,0.0005452,120]
[320763242,1711548657923,-927.68,0.0005452,120]
[320763243,1711548657932,-500.0,0.0005452,120]
[320763244,1711548657942,-501.87,0.0005452,120]
[320763245,1711548657951,-583.89,0.0005452,120]
[320763246,1711548657960,-500.0,0.0005452,120]
[320763247,1711548657970,-500.0,0.0005452,120]
[320763248,1711548657979,-500.0,0.0005452,120]
[320763249,1711548657988,-500.0,0.0005452,120]
[320763250,1711548657998,-1388.0,0.0005452,120]
[320763251,1711548658007,-500.0,0.0005452,120]
[320763252,1711548658017,-500.0,0.0005452,120]
[320763253,1711548658029,-738.82,0.0005452,120]
[320763254,1711548658042,-500.0,0.0005452,120]
[320763255,1711548658051,-500.0,0.0005452,120]
[320763256,1711548658060,-500.0,0.0005452,120]
[320763257,1711548658069,-500.0,0.0005452,120]
[320763258,1711548658080,-500.0,0.0005452,120]
[320763259,1711548658090,-1366.46,0.0005452,120]
[320763260,1711548658099,-500.0,0.0005452,120]
[320763261,1711548658108,-500.0,0.0005452,120]
[320763262,1711548658117,-500.0,0.0005452,120]
[320763263,1711548658127,-500.0,0.0005452,120]
[320763264,1711548658136,-500.0,0.0005452,120]
[320763265,1711548658150,-750.86,0.0005452,120]
[320763266,1711548658161,-500.0,0.0005452,120]
[320763267,1711548658170,-500.0,0.0005452,120]
[320763268,1711548658180,-500.0,0.0005452,120]
[320763269,1711548658189,-503.45,0.0005452,120]
[320763270,1711548658198,-500.0,0.0005452,120]
[320763271,1711548658207,-500.0,0.0005452,120]
[320763272,1711548658216,-527.46,0.0005452,120]
[320763273,1711548658225,-500.0,0.0005452,120]
[320763274,1711548658234,-375.93,0.0005452,120]
[320763275,1711548658243,-500.0,0.0005452,120]
[320763276,1711548658252,-552.78,0.0005452,120]
[320763277,1711548658262,-500.0,0.0005452,120]
[320763278,1711548658271,-500.0,0.0005452,120]
[320763279,1711548658280,-500.0,0.0005452,120]
[320763280,1711548658289,-500.0,0.0005452,120]
[320763281,1711548658299,-25132.99,0.0005452,120]
[320763282,1711548658308,-552.92,0.0005452,120]
[320763283,1711548658317,-500.0,0.0005452,120]
[320763284,1711548658326,-500.0,0.0005452,120]
[320763285,1711548658335,-500.0,0.0005452,120]
[320763286,1711548658344,-698.55,0.0005452,120]
[320763287,1711548658353,-500.0,0.0005452,120]
[320763288,1711548658362,-500.0,0.0005452,120]
[320763289,1711548658371,-500.0,0.0005452,120]
[320763290,1711548658380,-500.0,0.0005452,120]
[320763291,1711548658392,-500.0,0.0005452,120]
[320763292,1711548658401,-500.0,0.0005452,120]
[320763293,1711548658411,-641.12,0.0005452,120]
[320763294,1711548658420,-500.0,0.0005452,120]
[320763295,1711548658430,-4159.08,0.0005452,120]
[320763296,1711548658439,-500.0,0.0005452,120]
[320763297,1711548658448,-6995.52,0.0005452,120]
[320763298,1711548658457,-1027.4,0.0005452,120]
[320763299,1711548658467,-498.49,0.0005452,120]
[320763300,1711548658476,-500.0,0.0005452,120]
[320763301,1711548658485,-4012.43,0.0005452,120]
[320763302,1711548658494,-500.0,0.0005452,120]
[320763303,1711548658504,-500.0,0.0005452,120]
[320763304,1711548658513,-500.0,0.0005452,120]
[320763305,1711548658522,-501.41,0.0005452,120]
[320763306,1711548658531,-500.0,0.0005452,120]
[320763307,1711548658541,-500.0,0.0005452,120]
[320763308,1711548658550,-500.0,0.0005452,120]
[320763309,1711548658561,-727.55,0.0005452,120]
[320763310,1711548658570,-500.0,0.0005452,120]
[320763311,1711548658579,-500.0,0.0005452,120]
[320763312,1711548658588,-500.0,0.0005452,120]
[320763313,1711548658597,-500.0,0.0005452,120]
[320763314,1711548658606,-524.95,0.0005452,120]
[320763315,1711548658615,-500.0,0.0005452,120]
[320763316,1711548658625,-500.0,0.0005452,7]
[320763317,1711548658634,-607.46,0.0005452,120]
[320763318,1711548658646,-500.0,0.0005452,120]
[320763319,1711548658655,-3151.03,0.0005452,120]
[320763320,1711548658664,-2427.12,0.0005452,120]
[320763321,1711548658674,-991.32,0.0005452,120]
[320763322,1711548658684,-2608.24,0.0005452,120]
[320763323,1711548658693,-2948.76,0.0005452,120]
[320763324,1711548658703,-1381.98,0.0005452,120]
[320763325,1711548658713,-1431.7,0.0005452,120]
[320763326,1711548658723,-956.05,0.0005452,120]
[320763327,1711548658732,-500.0,0.0005452,120]
[320763328,1711548658741,-500.0,0.0005452,120]
[320763329,1711548658750,-500.0,0.0005452,120]
[320763330,1711548658759,-7146.88,0.0005452,120]
[320763331,1711548658768,-4426.81,0.0005452,120]
[320763332,1711548658777,-3417.72,0.0005452,21]
[320763333,1711548658786,-1318.6,0.0005452,120]
[320763334,1711548658795,-500.0,0.0005452,120]
[320763335,1711548658804,-500.0,0.0005452,120]
[320763336,1711548658814,-500.0,0.0005452,120]
[320763337,1711548658823,-1157.32,0.0005452,120]
[320763338,1711548658833,-500.0,0.0005452,120]
[320763339,1711548658843,-2303.2,0.0005452,120]
[320763340,1711548658852,-500.0,0.0005452,120]
[320763341,1711548658861,-500.0,0.0005452,120]
[320763342,1711548658871,-6635.16,0.0005452,120]
[320763343,1711548658880,-500.0,0.0005452,120]
[320763344,1711548658891,-2581.27,0.0005452,120]
[320763345,1711548658900,-500.0,0.0005452,120]
[320763346,1711548658909,-500.0,0.0005452,120]
[320763347,1711548658917,-500.0,0.0005452,120]
[320763348,1711548658926,-1794.3,0.0005452,120]
[320763349,1711548658935,-1270.22,0.0005452,120]
[320763350,1711548658945,-927.42,0.0005452,120]
[320763351,1711548658954,-1063.71,0.0005452,120]
[320763352,1711548658963,-500.0,0.0005452,120]
[320763353,1711548658972,-1122.91,0.0005452,120]
[320763354,1711548658982,-500.0,0.0005452,120]
[320763355,1711548658991,-735.59,0.0005452,120]
[320763356,1711548659001,-1540.36,0.0005452,120]
[320763357,1711548659011,-2026.07,0.0005452,120]
[320763358,1711548659020,-493.74,0.0005452,120]
[320763359,1711548659029,-500.0,0.0005452,120]
[320763360,1711548659042,-1982.99,0.0005452,120]
[320763361,1711548659051,-500.0,0.0005452,120]
[320763362,1711548659061,-1960.88,0.0005452,120]
[320763363,1711548659070,-767.76,0.0005452,120]
[320763364,1711548659081,-763.05,0.0005452,120]
[320763365,1711548659091,-500.0,0.0005452,120]
[320763366,1711548659100,-500.0,0.0005452,120]
[320763367,1711548659109,-659.21,0.0005452,120]
[320763368,1711548659119,-500.0,0.0005452,120]
[320763369,1711548659128,-500.0,0.0005452,120]
[320763370,1711548659138,-53903.71,0.0005452,120]
[320763371,1711548659151,-1503.32,0.0005452,120]
[320763372,1711548659160,-681.37,0.0005452,120]
[320763373,1711548659170,-6185.93,0.0005452,120]
[320763374,1711548659179,-5232.02,0.0005452,120]
[320763375,1711548659189,-500.0,0.0005452,120]
[320763376,1711548659198,-500.0,0.0005452,120]
[320763377,1711548659208,-693.39,0.0005452,120]
[320763378,1711548659217,-6825.37,0.0005452,120]
[320763379,1711548659226,-500.0,0.0005452,120]
[320763380,1711548659235,-500.0,0.0005452,120]
[320763381,1711548659245,-500.0,0.0005452,120]
[320763382,1711548659255,-500.0,0.0005452,120]
[320763383,1711548659264,-3850.72,0.0005452,120]
[320763384,1711548659274,-327.66,0.0005452,120]
[320763385,1711548659283,-2864.18,0.0005452,120]
[320763386,1711548659292,-500.0,0.0005452,120]
[320763387,1711548659302,-2840.25,0.0005452,120]
[320763388,1711548659311,-500.0,0.0005452,120]
[320763389,1711548659320,-1756.9,0.0005452,120]
[320763390,1711548659329,-500.0,0.0005452,120]
[320763391,1711548659339,-1806.36,0.0005452,120]
[320763392,1711548659348,-500.0,0.0005452,120]
[320763393,1711548659357,-6827.78,0.0005452,120]
[320763394,1711548659367,-500.0,0.0005452,120]
[320763395,1711548659376,-951.23,0.0005452,120]
[320763396,1711548659385,-3135.21,0.0005452,120]
[320763397,1711548659399,-1430.25,0.0005452,120]
[320763398,1711548659408,-1318.37,0.0005452,120]
[320763399,1711548659417,-1350.06,0.0005452,120]
[320763400,1711548659427,-2151.34,0.0005452,120]
[320763401,1711548659436,-1043.59,0.0005452,120]
[320763402,1711548659445,-877.23,0.0005452,120]
[320763403,1711548659454,-4315.69,0.0005452,120]
[320763404,1711548659463,-4698.19,0.0005452,120]
[320763405,1711548659472,-2096.28,0.0005452,120]
[320763406,1711548659481,-500.0,0.0005452,120]
[320763407,1711548659491,-1083.91,0.0005452,120]
[320763408,1711548659501,-500.0,0.0005452,120]
[320763409,1711548659511,-2855.33,0.0005452,120]
[320763410,1711548659520,-1298.8,0.0005452,120]
[320763411,1711548659530,-720.22,0.0005452,120]
[320763412,1711548659539,-1532.25,0.0005452,120]
[320763413,1711548659549,-502.0,0.0005452,120]
[320763414,1711548659558,-5190.44,0.0005452,120]
[320763415,1711548659567,-2678.01,0.0005452,120]
[320763416,1711548659576,-500.0,0.0005452,120]
[320763417,1711548659585,-500.0,0.0005452,120]
[320763418,1711548659595,-908.56,0.0005452,120]
[320763419,1711548659604,-500.0,0.0005452,120]
[320763420,1711548659613,-3901.55,0.0005452,120]
[320763421,1711548659623,-766.57,0.0005452,120]